[Event "*** SCC Grand Prix: Titled Tuesday Blitz"]
[Site "Chess.com"]
[Date "2020.10.13"]
[Round "4"]
[White "chesslh19"]
[Black "Nemsko"]
[Result "1/2-1/2"]
[WhiteElo "2226"]
[BlackElo "2361"]
[TimeControl "180+1"]
[EndTime "10:40:54 PDT"]
[Termination "Game drawn by repetition"]

1. e4 {[%clk 0:03:00.9]} 1... c5 {[%clk 0:02:55.8]} 2. Nf3 {[%clk 0:02:50.7]}
2... d6 {[%clk 0:02:55.1]} 3. d4 {[%clk 0:02:50.5]} 3... cxd4 {[%clk 0:02:56]}
4. Nxd4 {[%clk 0:02:51]} 4... Nf6 {[%clk 0:02:56.7]} 5. Nc3 {[%clk 0:02:51.2]}
5... Nc6 {[%clk 0:02:57.2]} 6. Be2 {[%clk 0:02:48.7]} 6... g6 {[%clk 0:02:52.3]}
7. O-O {[%clk 0:02:48.3]} 7... Bg7 {[%clk 0:02:52.2]} 8. Be3 {[%clk 0:02:48.9]}
8... O-O {[%clk 0:02:51.1]} 9. Nb3 {[%clk 0:02:49.5]} 9... a6 {[%clk 0:02:37.9]}
10. f4 {[%clk 0:02:46.4]} 10... b5 {[%clk 0:02:35.4]} 11. Bf3 {[%clk 0:02:46.2]}
11... Bb7 {[%clk 0:02:34.1]} 12. Nd5 {[%clk 0:01:56]} 12... e6 {[%clk
0:02:26.1]} 13. Bb6 {[%clk 0:01:45.1]} 13... Qd7 {[%clk 0:02:11.9]} 14. Nxf6+
{[%clk 0:01:44.4]} 14... Bxf6 {[%clk 0:02:11.2]} 15. c3 {[%clk 0:01:44.6]} 15...
Qe7 {[%clk 0:02:04]} 16. Qe2 {[%clk 0:01:29]} 16... Bg7 {[%clk 0:01:51.6]} 17.
Rad1 {[%clk 0:01:27.3]} 17... Rfe8 {[%clk 0:01:37.8]} 18. Qd2 {[%clk 0:01:04.5]}
18... Bf8 {[%clk 0:01:32.6]} 19. Rfe1 {[%clk 0:00:55.2]} 19... a5 {[%clk
0:01:25]} 20. Nd4 {[%clk 0:00:46.2]} 20... Nxd4 {[%clk 0:01:17.7]} 21. Bxd4
{[%clk 0:00:47.1]} 21... e5 {[%clk 0:01:12.5]} 22. fxe5 {[%clk 0:00:38.3]} 22...
dxe5 {[%clk 0:01:13.4]} 23. Be3 {[%clk 0:00:38.9]} 23... Rad8 {[%clk 0:01:09.4]}
24. Qf2 {[%clk 0:00:37.5]} 24... Rxd1 {[%clk 0:01:02.7]} 25. Rxd1 {[%clk
0:00:37.3]} 25... Rd8 {[%clk 0:01:03.2]} 26. Rxd8 {[%clk 0:00:29.6]} 26... Qxd8
{[%clk 0:01:04.1]} 27. Qd2 {[%clk 0:00:29.8]} 27... Qxd2 {[%clk 0:00:59.9]} 28.
Bxd2 {[%clk 0:00:30.7]} 28... Bc5+ {[%clk 0:01:00.1]} 29. Kf1 {[%clk 0:00:30.7]}
29... f6 {[%clk 0:01:00.7]} 30. a3 {[%clk 0:00:26.5]} 30... Kf7 {[%clk
0:01:00.4]} 31. Ke2 {[%clk 0:00:25]} 31... Ke6 {[%clk 0:00:59.8]} 32. Be3 {[%clk
0:00:24.7]} 32... Bd6 {[%clk 0:00:54.8]} 33. b4 {[%clk 0:00:17.8]} 33... axb4
{[%clk 0:00:52.8]} 34. axb4 {[%clk 0:00:16.2]} 34... Bc6 {[%clk 0:00:52]} 35.
Kd2 {[%clk 0:00:15.7]} 35... Bd7 {[%clk 0:00:47.8]} 36. Be2 {[%clk 0:00:14.7]}
36... f5 {[%clk 0:00:47.5]} 37. exf5+ {[%clk 0:00:11.5]} 37... gxf5 {[%clk
0:00:48.4]} 38. g3 {[%clk 0:00:09.8]} 38... Kd5 {[%clk 0:00:47.3]} 39. Bd3
{[%clk 0:00:08.3]} 39... e4 {[%clk 0:00:42.4]} 40. Be2 {[%clk 0:00:08.2]} 40...
Be5 {[%clk 0:00:40.4]} 41. Bg5 {[%clk 0:00:07.4]} 41... Kc6 {[%clk 0:00:33]} 42.
Bf4 {[%clk 0:00:07.5]} 42... Bf6 {[%clk 0:00:29]} 43. Be3 {[%clk 0:00:07.6]}
43... Be6 {[%clk 0:00:29.3]} 44. Bf4 {[%clk 0:00:07.2]} 44... Bb3 {[%clk
0:00:24.3]} 45. Bh5 {[%clk 0:00:06.6]} 45... Be6 {[%clk 0:00:20.4]} 46. Be2
{[%clk 0:00:06.4]} 46... Bf7 {[%clk 0:00:19.5]} 47. Bd1 {[%clk 0:00:06.3]} 47...
h5 {[%clk 0:00:19.8]} 48. Be2 {[%clk 0:00:05.8]} 48... h4 {[%clk 0:00:20.1]} 49.
Bd1 {[%clk 0:00:05.6]} 49... Kd5 {[%clk 0:00:19.4]} 50. Be2 {[%clk 0:00:05.8]}
50... Kc6 {[%clk 0:00:19.6]} 51. Bd1 {[%clk 0:00:06.1]} 51... Bc4 {[%clk
0:00:18.9]} 52. Bh5 {[%clk 0:00:05.6]} 52... Bg8 {[%clk 0:00:14.7]} 53. Be2
{[%clk 0:00:04.1]} 53... hxg3 {[%clk 0:00:14.9]} 54. hxg3 {[%clk 0:00:05]} 54...
Bf7 {[%clk 0:00:12.5]} 55. Bd1 {[%clk 0:00:05.2]} 55... Bc4 {[%clk 0:00:08.6]}
56. Bh5 {[%clk 0:00:05]} 56... Bd5 {[%clk 0:00:08.4]} 57. Be8+ {[%clk 0:00:05]}
57... Kb6 {[%clk 0:00:08.8]} 58. Bh5 {[%clk 0:00:05.2]} 58... Ka6 {[%clk
0:00:09.1]} 59. Be8 {[%clk 0:00:05.3]} 59... Bc4 {[%clk 0:00:09.2]} 60. Bg6
{[%clk 0:00:04.9]} 60... Be6 {[%clk 0:00:08.8]} 61. Bh5 {[%clk 0:00:05.2]} 61...
Kb6 {[%clk 0:00:08.7]} 62. Be2 {[%clk 0:00:05.2]} 62... Kc6 {[%clk 0:00:09.3]}
63. Be3 {[%clk 0:00:05.2]} 63... Be5 {[%clk 0:00:09]} 64. Bf4 {[%clk 0:00:05.4]}
64... Bxf4+ {[%clk 0:00:09.4]} 65. gxf4 {[%clk 0:00:06.3]} 65... Bd7 {[%clk
0:00:08.9]} 66. Ke3 {[%clk 0:00:06.5]} 66... Kd5 {[%clk 0:00:09.6]} 67. Bd1
{[%clk 0:00:05.9]} 67... Ke6 {[%clk 0:00:09.5]} 68. Kd4 {[%clk 0:00:05.9]} 68...
Kd6 {[%clk 0:00:09.6]} 69. Be2 {[%clk 0:00:05.9]} 69... Bc6 {[%clk 0:00:09.9]}
70. Bf1 {[%clk 0:00:05.9]} 70... Be8 {[%clk 0:00:10]} 71. Be2 {[%clk 0:00:06.3]}
71... Bc6 {[%clk 0:00:10.3]} 72. Bf1 {[%clk 0:00:06.6]} 72... Be8 {[%clk
0:00:10.7]} 73. Be2 {[%clk 0:00:07.2]} 73... Bd7 {[%clk 0:00:10.5]} 74. Bf1
{[%clk 0:00:07.6]} 74... Bc6 {[%clk 0:00:09.8]} 75. Be2 {[%clk 0:00:07.9]} 75...
Bd7 {[%clk 0:00:10.2]} 76. Bf1 {[%clk 0:00:08.4]} 76... Bc6 {[%clk 0:00:10.1]}
77. Be2 {[%clk 0:00:08.9]} 77... Bd7 {[%clk 0:00:10.6]} 1/2-1/2

[Event "*** SCC Grand Prix: Titled Tuesday Blitz"]
[Site "Chess.com"]
[Date "2020.10.13"]
[Round "4"]
[White "Jungle_Jaguar"]
[Black "venus02"]
[Result "1/2-1/2"]
[WhiteElo "2623"]
[BlackElo "2485"]
[TimeControl "180+1"]
[EndTime "10:40:56 PDT"]
[Termination "Game drawn - insufficient material"]

1. e4 {[%clk 0:03:00.9]} 1... c6 {[%clk 0:02:59.9]} 2. d4 {[%clk 0:03:00.8]}
2... d5 {[%clk 0:03:00.5]} 3. e5 {[%clk 0:03:00.6]} 3... Bf5 {[%clk 0:02:59.9]}
4. h4 {[%clk 0:03:01]} 4... h5 {[%clk 0:02:57.2]} 5. c4 {[%clk 0:03:00.8]} 5...
e6 {[%clk 0:02:56.2]} 6. Nc3 {[%clk 0:02:59.6]} 6... Ne7 {[%clk 0:02:50.8]} 7.
Nge2 {[%clk 0:02:58.8]} 7... Nd7 {[%clk 0:02:48.6]} 8. Ng3 {[%clk 0:02:58.7]}
8... Bg6 {[%clk 0:02:47.1]} 9. Bg5 {[%clk 0:02:58]} 9... Qb6 {[%clk 0:02:45.3]}
10. Rc1 {[%clk 0:02:31.4]} 10... Nf5 {[%clk 0:02:40.6]} 11. Nxf5 {[%clk
0:01:41.8]} 11... Bxf5 {[%clk 0:02:40.4]} 12. Qd2 {[%clk 0:01:38.8]} 12... Bb4
{[%clk 0:02:34.2]} 13. a3 {[%clk 0:01:31.5]} 13... Bxc3 {[%clk 0:02:33.3]} 14.
Qxc3 {[%clk 0:01:29.5]} 14... O-O {[%clk 0:02:32]} 15. c5 {[%clk 0:01:18.6]}
15... Qc7 {[%clk 0:02:29.4]} 16. Be2 {[%clk 0:01:19.1]} 16... f6 {[%clk
0:02:23.1]} 17. exf6 {[%clk 0:01:09.6]} 17... Nxf6 {[%clk 0:02:23.1]} 18. Bxf6
{[%clk 0:01:07.4]} 18... Rxf6 {[%clk 0:02:22.3]} 19. Bxh5 {[%clk 0:01:07.9]}
19... Be4 {[%clk 0:02:17.3]} 20. O-O {[%clk 0:00:55.5]} 20... Rh6 {[%clk
0:02:15.3]} 21. Bg4 {[%clk 0:00:38.3]} 21... Rxh4 {[%clk 0:02:11.5]} 22. Bxe6+
{[%clk 0:00:38.4]} 22... Kh8 {[%clk 0:02:06.7]} 23. Qg3 {[%clk 0:00:38.7]} 23...
Qe7 {[%clk 0:01:57.8]} 24. f3 {[%clk 0:00:37.8]} 24... Bh7 {[%clk 0:01:44.9]}
25. Rce1 {[%clk 0:00:36.4]} 25... Qf6 {[%clk 0:01:41.8]} 26. Bg4 {[%clk
0:00:33.4]} 26... Qxd4+ {[%clk 0:01:40.9]} 27. Qf2 {[%clk 0:00:32.5]} 27... Qf6
{[%clk 0:01:30.1]} 28. Re6 {[%clk 0:00:31.4]} 28... Qg5 {[%clk 0:01:29.9]} 29.
Qe3 {[%clk 0:00:30.2]} 29... Qxe3+ {[%clk 0:01:06.7]} 30. Rxe3 {[%clk
0:00:31.1]} 30... b6 {[%clk 0:01:02.1]} 31. Rfe1 {[%clk 0:00:30]} 31... Bg8
{[%clk 0:00:58.3]} 32. Re8 {[%clk 0:00:16.8]} 32... Rxe8 {[%clk 0:00:56.8]} 33.
Rxe8 {[%clk 0:00:17.7]} 33... Rh6 {[%clk 0:00:53.7]} 34. cxb6 {[%clk 0:00:12.6]}
34... axb6 {[%clk 0:00:53.2]} 35. a4 {[%clk 0:00:07.8]} 35... c5 {[%clk
0:00:51.6]} 36. Rd8 {[%clk 0:00:07.6]} 36... d4 {[%clk 0:00:49.7]} 37. Bf5
{[%clk 0:00:07.7]} 37... Rf6 {[%clk 0:00:22.7]} 38. Bd3 {[%clk 0:00:07.8]} 38...
g5 {[%clk 0:00:22.6]} 39. Bc4 {[%clk 0:00:04.6]} 39... Rg6 {[%clk 0:00:22.9]}
40. b3 {[%clk 0:00:04.5]} 40... Rg7 {[%clk 0:00:19.1]} 41. Kf2 {[%clk
0:00:04.4]} 41... Kh7 {[%clk 0:00:18.3]} 42. Bd3+ {[%clk 0:00:04.9]} 42... Kh8
{[%clk 0:00:16.4]} 43. Bc4 {[%clk 0:00:03.7]} 43... Kh7 {[%clk 0:00:16.4]} 44.
Bxg8+ {[%clk 0:00:04.3]} 44... Rxg8 {[%clk 0:00:15.6]} 45. Rd6 {[%clk
0:00:05.2]} 45... Rg6 {[%clk 0:00:15.5]} 46. Rd7+ {[%clk 0:00:05.2]} 46... Rg7
{[%clk 0:00:15.3]} 47. Rd6 {[%clk 0:00:05.3]} 47... Rg6 {[%clk 0:00:15.6]} 48.
Rd7+ {[%clk 0:00:05.2]} 48... Kh6 {[%clk 0:00:15.9]} 49. Rd8 {[%clk 0:00:06.1]}
49... Re6 {[%clk 0:00:16]} 50. Kg3 {[%clk 0:00:05.8]} 50... Re3 {[%clk
0:00:15.5]} 51. Rd6+ {[%clk 0:00:05.6]} 51... Kh5 {[%clk 0:00:14.7]} 52. Rxb6
{[%clk 0:00:05.8]} 52... Rc3 {[%clk 0:00:14.4]} 53. Kh3 {[%clk 0:00:06.3]} 53...
g4+ {[%clk 0:00:14.3]} 54. Kg3 {[%clk 0:00:06.7]} 54... gxf3 {[%clk 0:00:14.2]}
55. gxf3 {[%clk 0:00:07.6]} 55... d3 {[%clk 0:00:14.2]} 56. Kf4 {[%clk
0:00:05.7]} 56... d2 {[%clk 0:00:13.2]} 57. Rd6 {[%clk 0:00:06.3]} 57... Rxb3
{[%clk 0:00:09.7]} 58. Rxd2 {[%clk 0:00:06.9]} 58... Rb4+ {[%clk 0:00:09.6]} 59.
Kf5 {[%clk 0:00:06.2]} 59... Kh4 {[%clk 0:00:09.6]} 60. Rc2 {[%clk 0:00:04.7]}
60... Rxa4 {[%clk 0:00:09.2]} 61. Rxc5 {[%clk 0:00:05.1]} 61... Kg3 {[%clk
0:00:09.2]} 62. Rc3 {[%clk 0:00:04.9]} 62... Rf4+ {[%clk 0:00:09.2]} 63. Kg5
{[%clk 0:00:04.7]} 63... Rxf3 {[%clk 0:00:09.7]} 64. Rxf3+ {[%clk 0:00:04.9]}
64... Kxf3 {[%clk 0:00:10]} 1/2-1/2

[Event "*** SCC Grand Prix: Titled Tuesday Blitz"]
[Site "Chess.com"]
[Date "2020.10.13"]
[Round "4"]
[White "pirulillo"]
[Black "Zq1"]
[Result "0-1"]
[WhiteElo "2243"]
[BlackElo "2512"]
[TimeControl "180+1"]
[EndTime "10:40:56 PDT"]
[Termination "Zq1 won by resignation"]

1. e4 {[%clk 0:02:54]} 1... c5 {[%clk 0:02:59.4]} 2. Nf3 {[%clk 0:02:41.2]} 2...
d6 {[%clk 0:02:58.7]} 3. d4 {[%clk 0:02:35.8]} 3... cxd4 {[%clk 0:02:57.8]} 4.
Nxd4 {[%clk 0:02:33.2]} 4... Nf6 {[%clk 0:02:54.2]} 5. Nc3 {[%clk 0:02:27.6]}
5... Nc6 {[%clk 0:02:53.5]} 6. Bg5 {[%clk 0:02:22.7]} 6... e6 {[%clk 0:02:53.4]}
7. Bb5 {[%clk 0:02:21.8]} 7... Bd7 {[%clk 0:02:52.6]} 8. Bxc6 {[%clk 0:02:13.3]}
8... bxc6 {[%clk 0:02:51.4]} 9. Qf3 {[%clk 0:02:12.6]} 9... h6 {[%clk
0:02:45.8]} 10. Bh4 {[%clk 0:01:52.5]} 10... Rc8 {[%clk 0:02:26.4]} 11. O-O
{[%clk 0:01:28.1]} 11... Be7 {[%clk 0:02:24.6]} 12. Rad1 {[%clk 0:01:17.1]}
12... O-O {[%clk 0:02:19]} 13. Bg3 {[%clk 0:01:15.1]} 13... c5 {[%clk
0:02:06.4]} 14. Ndb5 {[%clk 0:01:10.5]} 14... e5 {[%clk 0:02:02.5]} 15. Nxd6
{[%clk 0:01:09]} 15... Bg4 {[%clk 0:02:01.6]} 16. Qd3 {[%clk 0:01:02.5]} 16...
Bxd1 {[%clk 0:01:58.9]} 17. Nxc8 {[%clk 0:00:49.3]} 17... Qxc8 {[%clk
0:01:54.4]} 18. Rxd1 {[%clk 0:00:47.4]} 18... c4 {[%clk 0:01:52.8]} 19. Qe2
{[%clk 0:00:45.4]} 19... Qc5 {[%clk 0:01:40.8]} 20. Nd5 {[%clk 0:00:41.8]} 20...
Nxd5 {[%clk 0:01:36.6]} 21. Rxd5 {[%clk 0:00:41.2]} 21... Qb6 {[%clk 0:01:18.4]}
22. Bxe5 {[%clk 0:00:40.8]} 22... Re8 {[%clk 0:01:16.3]} 23. Bc3 {[%clk
0:00:36.8]} 23... Bb4 {[%clk 0:01:11.6]} 24. Bd4 {[%clk 0:00:32.1]} 24... Qe6
{[%clk 0:01:06.7]} 25. Re5 {[%clk 0:00:23.8]} 25... Qd7 {[%clk 0:01:06.5]} 26.
Rxe8+ {[%clk 0:00:23.4]} 26... Qxe8 {[%clk 0:01:06.5]} 27. c3 {[%clk 0:00:23.2]}
27... Bd6 {[%clk 0:01:00.1]} 28. g3 {[%clk 0:00:23.2]} 28... Qa4 {[%clk
0:00:53.4]} 29. a3 {[%clk 0:00:22.3]} 29... Bc7 {[%clk 0:00:51.9]} 30. Kg2
{[%clk 0:00:22.1]} 30... Bb6 {[%clk 0:00:51.6]} 31. f4 {[%clk 0:00:19.2]} 31...
Bxd4 {[%clk 0:00:49.9]} 32. cxd4 {[%clk 0:00:20.1]} 32... Qb3 {[%clk 0:00:49.8]}
33. d5 {[%clk 0:00:19.6]} 33... h5 {[%clk 0:00:43.1]} 34. Qd2 {[%clk 0:00:19.6]}
34... Qb5 {[%clk 0:00:39.9]} 35. d6 {[%clk 0:00:18.7]} 35... Qd7 {[%clk
0:00:39.4]} 36. Qd5 {[%clk 0:00:18.7]} 36... g6 {[%clk 0:00:36.9]} 37. e5 {[%clk
0:00:18.5]} 37... Kg7 {[%clk 0:00:34.6]} 38. Qxc4 {[%clk 0:00:18.4]} 38... Qb7+
{[%clk 0:00:34.6]} 39. Kh3 {[%clk 0:00:17.8]} 39... Qd7+ {[%clk 0:00:27.7]} 40.
Kg2 {[%clk 0:00:17.2]} 40... Qb7+ {[%clk 0:00:27.5]} 41. Kf2 {[%clk 0:00:14.1]}
41... Qxb2+ {[%clk 0:00:26.9]} 42. Qe2 {[%clk 0:00:13.9]} 42... Qb6+ {[%clk
0:00:25.2]} 43. Qe3 {[%clk 0:00:13.7]} 43... Qb2+ {[%clk 0:00:24.9]} 44. Kf3
{[%clk 0:00:14]} 44... Qb7+ {[%clk 0:00:24.2]} 45. Ke2 {[%clk 0:00:14.3]} 45...
Qb2+ {[%clk 0:00:23.7]} 46. Qd2 {[%clk 0:00:14.5]} 46... Qb5+ {[%clk 0:00:23.4]}
47. Kf2 {[%clk 0:00:14.8]} 47... Qd7 {[%clk 0:00:19.4]} 48. Kg2 {[%clk
0:00:13.6]} 48... Qc6+ {[%clk 0:00:18.3]} 49. Kf2 {[%clk 0:00:12.5]} 49... Qd7
{[%clk 0:00:17.8]} 50. Qd4 {[%clk 0:00:12.7]} 50... Kf8 {[%clk 0:00:13.7]} 51.
a4 {[%clk 0:00:12.9]} 51... Ke8 {[%clk 0:00:13]} 52. Qc4 {[%clk 0:00:13.1]}
52... Qh3 {[%clk 0:00:10.4]} 53. Qc6+ {[%clk 0:00:11.3]} 53... Kf8 {[%clk
0:00:09.6]} 54. d7 {[%clk 0:00:11.3]} 54... Qxh2+ {[%clk 0:00:09]} 55. Qg2
{[%clk 0:00:10]} 55... Qxg2+ {[%clk 0:00:09]} 56. Kxg2 {[%clk 0:00:09.9]} 56...
Ke7 {[%clk 0:00:09.7]} 57. Kf3 {[%clk 0:00:10.1]} 57... Kxd7 {[%clk 0:00:10.3]}
58. Ke4 {[%clk 0:00:10.4]} 58... Ke6 {[%clk 0:00:10.6]} 59. Kd4 {[%clk
0:00:09.4]} 59... Kf5 {[%clk 0:00:09.9]} 60. Ke3 {[%clk 0:00:09.6]} 60... Kg4
{[%clk 0:00:09.6]} 61. Kf2 {[%clk 0:00:09.7]} 61... h4 {[%clk 0:00:10]} 62. gxh4
{[%clk 0:00:09.3]} 62... Kxf4 {[%clk 0:00:10.2]} 63. Ke2 {[%clk 0:00:09.5]}
63... Kxe5 {[%clk 0:00:10.2]} 64. Kf3 {[%clk 0:00:10.2]} 64... Kf5 {[%clk
0:00:10.3]} 65. Kg3 {[%clk 0:00:10.4]} 65... Ke4 {[%clk 0:00:09.5]} 66. Kg4
{[%clk 0:00:10.6]} 66... f6 {[%clk 0:00:10]} 67. Kg3 {[%clk 0:00:09.8]} 67... f5
{[%clk 0:00:10.3]} 68. Kh3 {[%clk 0:00:09.8]} 68... Kf3 {[%clk 0:00:10.1]} 69.
h5 {[%clk 0:00:09.6]} 69... gxh5 {[%clk 0:00:10.3]} 70. Kh4 {[%clk 0:00:10.5]}
70... f4 {[%clk 0:00:10.9]} 0-1

[Event "*** SCC Grand Prix: Titled Tuesday Blitz"]
[Site "Chess.com"]
[Date "2020.10.13"]
[Round "4"]
[White "bait_or_mate"]
[Black "barriochess"]
[Result "1-0"]
[WhiteElo "2517"]
[BlackElo "2264"]
[TimeControl "180+1"]
[EndTime "10:41:00 PDT"]
[Termination "bait_or_mate won by resignation"]

1. d4 {[%clk 0:02:55]} 1... d5 {[%clk 0:02:59.3]} 2. c4 {[%clk 0:02:54.8]} 2...
e6 {[%clk 0:02:58.7]} 3. Nf3 {[%clk 0:02:54.9]} 3... c5 {[%clk 0:02:58.7]} 4.
cxd5 {[%clk 0:02:53.5]} 4... exd5 {[%clk 0:02:59.6]} 5. g3 {[%clk 0:02:53.4]}
5... Nc6 {[%clk 0:03:00]} 6. Bg2 {[%clk 0:02:53.8]} 6... Nf6 {[%clk 0:03:00.6]}
7. O-O {[%clk 0:02:54.2]} 7... Be7 {[%clk 0:03:00.6]} 8. dxc5 {[%clk 0:02:53.3]}
8... Bxc5 {[%clk 0:03:00]} 9. a3 {[%clk 0:02:53.7]} 9... a6 {[%clk 0:02:59.3]}
10. b4 {[%clk 0:02:53.6]} 10... Ba7 {[%clk 0:02:59.6]} 11. Bb2 {[%clk
0:02:53.9]} 11... O-O {[%clk 0:02:59.2]} 12. Nbd2 {[%clk 0:02:53.5]} 12... Ne4
{[%clk 0:02:46.3]} 13. Rc1 {[%clk 0:02:45.8]} 13... Re8 {[%clk 0:02:42]} 14. Nb3
{[%clk 0:02:43.8]} 14... Bg4 {[%clk 0:02:38.6]} 15. Nbd4 {[%clk 0:02:32.5]}
15... Nxd4 {[%clk 0:02:34.5]} 16. Bxd4 {[%clk 0:02:27.4]} 16... Bxd4 {[%clk
0:02:31.4]} 17. Qxd4 {[%clk 0:02:28.3]} 17... Qf6 {[%clk 0:02:18.1]} 18. Qxf6
{[%clk 0:02:04.4]} 18... Nxf6 {[%clk 0:02:16.5]} 19. e3 {[%clk 0:01:32.4]} 19...
Re7 {[%clk 0:02:13.1]} 20. Nd4 {[%clk 0:01:29]} 20... g6 {[%clk 0:02:03]} 21. h3
{[%clk 0:01:24.9]} 21... Be6 {[%clk 0:02:00.1]} 22. Rc2 {[%clk 0:01:21]} 22...
Rd8 {[%clk 0:01:56.9]} 23. Rfc1 {[%clk 0:01:18.9]} 23... Ne4 {[%clk 0:01:49.3]}
24. g4 {[%clk 0:00:52.2]} 24... Nd6 {[%clk 0:01:41.6]} 25. Bf1 {[%clk 0:00:46]}
25... Kf8 {[%clk 0:01:31.8]} 26. Kg2 {[%clk 0:00:41]} 26... Bd7 {[%clk
0:01:31.6]} 27. Rc7 {[%clk 0:00:36.8]} 27... Ba4 {[%clk 0:01:29]} 28. Bd3 {[%clk
0:00:26.8]} 28... Rxc7 {[%clk 0:01:28.2]} 29. Rxc7 {[%clk 0:00:27.7]} 29... Rd7
{[%clk 0:01:28.6]} 30. Rxd7 {[%clk 0:00:26.5]} 30... Bxd7 {[%clk 0:01:27.9]} 31.
Kg3 {[%clk 0:00:26.8]} 31... f6 {[%clk 0:01:21]} 32. h4 {[%clk 0:00:25.7]} 32...
Kg7 {[%clk 0:01:17.9]} 33. g5 {[%clk 0:00:22.1]} 33... h6 {[%clk 0:01:11.6]} 34.
f4 {[%clk 0:00:13.7]} 34... hxg5 {[%clk 0:01:09]} 35. fxg5 {[%clk 0:00:13.4]}
35... Nf7 {[%clk 0:01:06]} 36. Kf4 {[%clk 0:00:13]} 36... Ne5 {[%clk 0:01:01.6]}
37. Be2 {[%clk 0:00:09.3]} 37... Kf7 {[%clk 0:00:47.6]} 38. Nb3 {[%clk
0:00:05.6]} 38... Ke7 {[%clk 0:00:44.3]} 39. Nc5 {[%clk 0:00:05.3]} 39... Bc6
{[%clk 0:00:44.7]} 40. Bf1 {[%clk 0:00:02.7]} 40... Nf7 {[%clk 0:00:30.7]} 41.
Nb3 {[%clk 0:00:02.2]} 41... Ne5 {[%clk 0:00:19.7]} 42. Nd4 {[%clk 0:00:01.7]}
42... Bd7 {[%clk 0:00:19.5]} 43. Be2 {[%clk 0:00:02.1]} 43... Be8 {[%clk
0:00:17.6]} 44. Bd1 {[%clk 0:00:01.7]} 44... Bf7 {[%clk 0:00:17.7]} 45. Bc2
{[%clk 0:00:01.8]} 45... Nd7 {[%clk 0:00:16.5]} 46. Bd3 {[%clk 0:00:01.4]} 46...
Ne5 {[%clk 0:00:16.5]} 47. Be2 {[%clk 0:00:01.9]} 47... Nd7 {[%clk 0:00:16.8]}
48. a4 {[%clk 0:00:02.4]} 48... Ne5 {[%clk 0:00:17]} 49. b5 {[%clk 0:00:02.9]}
49... axb5 {[%clk 0:00:16.5]} 50. Bxb5 {[%clk 0:00:03.8]} 50... b6 {[%clk
0:00:15.8]} 51. Be2 {[%clk 0:00:03.6]} 51... Nd7 {[%clk 0:00:14.7]} 52. Bb5
{[%clk 0:00:03.4]} 52... Nc5 {[%clk 0:00:13.4]} 53. Nc6+ {[%clk 0:00:03.1]}
53... Kd6 {[%clk 0:00:12.9]} 54. Nd4 {[%clk 0:00:02.5]} 54... Ke7 {[%clk
0:00:12]} 55. Nc6+ {[%clk 0:00:02.3]} 55... Kd6 {[%clk 0:00:12.1]} 56. gxf6
{[%clk 0:00:02.1]} 56... Ne6+ {[%clk 0:00:12.4]} 57. Kg4 {[%clk 0:00:01.9]}
57... Be8 {[%clk 0:00:12.2]} 58. Nd4 {[%clk 0:00:01.9]} 58... Bxb5 {[%clk
0:00:11.8]} 59. axb5 {[%clk 0:00:02.8]} 59... Nc5 {[%clk 0:00:07.9]} 60. Kg5
{[%clk 0:00:03.1]} 60... Nd7 {[%clk 0:00:02]} 61. Kxg6 {[%clk 0:00:03.3]} 61...
Ne5+ {[%clk 0:00:02.9]} 62. Kg7 {[%clk 0:00:03.5]} 62... Nd7 {[%clk 0:00:01.7]}
63. f7 {[%clk 0:00:03.8]} 63... Ke5 {[%clk 0:00:02.2]} 64. f8=Q {[%clk
0:00:03.4]} 64... Nxf8 {[%clk 0:00:03.1]} 65. Kxf8 {[%clk 0:00:04.1]} 65... Ke4
{[%clk 0:00:04]} 66. Nc2 {[%clk 0:00:04.2]} 66... Kd3 {[%clk 0:00:04.2]} 67.
Nb4+ {[%clk 0:00:04.7]} 67... Kxe3 {[%clk 0:00:04.4]} 68. Nxd5+ {[%clk
0:00:05.1]} 68... Ke4 {[%clk 0:00:04.3]} 69. Nxb6 {[%clk 0:00:06]} 69... Kf5
{[%clk 0:00:04.7]} 70. Nd7 {[%clk 0:00:06.3]} 70... Kg4 {[%clk 0:00:05.6]} 71.
b6 {[%clk 0:00:07.2]} 71... Kxh4 {[%clk 0:00:06.5]} 72. b7 {[%clk 0:00:07.7]}
1-0